fUST/lending_fUST_20251207
["ID","MTS","AMOUNT","RATE_DAILY","PERIOD"]
[396608304,1765068653657,-500.0,8.767e-05,2]
[396608307,1765068653671,-500.0,8.767e-05,2]
[396608309,1765068653680,-500.0,8.767e-05,2]
[396608310,1765068653689,-500.0,8.767e-05,2]
[396608313,1765068653699,-500.0,8.767e-05,2]
[396608314,1765068653712,-685.73,8.767e-05,2]
[396608317,1765068653721,-551.62,8.767e-05,2]
[396608318,1765068653731,-500.0,8.767e-05,2]
[396608320,1765068653741,-500.0,8.767e-05,2]
[396608322,1765068653756,-500.0,8.767e-05,2]
[396608324,1765068653765,-500.0,8.767e-05,2]
[396608326,1765068653775,-500.0,8.767e-05,2]
[396608328,1765068653785,-220.39620066,8.767e-05,2]
[396608330,1765068653795,-541.72,8.767e-05,2]
[396608332,1765068653807,-500.0,8.767e-05,2]
[396608334,1765068653817,-500.0,8.767e-05,2]
[396608336,1765068653826,-500.0,8.767e-05,2]
[396608338,1765068653836,-500.0,8.767e-05,2]
[396608340,1765068653845,-1324.26,8.767e-05,2]
[396608342,1765068653856,-500.0,8.767e-05,2]
[396608344,1765068653866,-500.0,8.767e-05,2]
[396608346,1765068653875,-500.0,8.767e-05,2]
[396608348,1765068653885,-613.56,8.767e-05,2]
[396608350,1765068653895,-500.0,8.767e-05,2]
[396608351,1765068653904,-500.0,8.767e-05,2]
[396608353,1765068653914,-475.6205281,8.767e-05,2]
[396608355,1765068653923,-500.0,8.767e-05,2]
[396608357,1765068653933,-500.0,8.767e-05,2]
[396608359,1765068653943,-500.0,8.767e-05,2]
[396608361,1765068653953,-500.0,8.767e-05,2]
[396608363,1765068653963,-500.0,8.767e-05,2]
[396608365,1765068653973,-557.34620934,8.767e-05,2]
[396608367,1765068653983,-500.0,8.767e-05,2]
[396608369,1765068653992,-500.0,8.767e-05,2]
[396608371,1765068654002,-1456.64,8.767e-05,2]
[396608373,1765068654012,-500.0,8.767e-05,2]
[396608375,1765068654022,-500.0,8.767e-05,2]
[396608377,1765068654032,-500.0,8.767e-05,2]
[396608379,1765068654042,-530.51,8.767e-05,2]
[396608381,1765068654052,-500.0,8.767e-05,2]
[396608383,1765068654061,-500.0,8.767e-05,2]
[396608385,1765068654071,-500.0,8.767e-05,2]
[396608387,1765068654080,-500.0,8.767e-05,2]
[396608389,1765068654089,-500.0,8.767e-05,2]
[396608391,1765068654098,-500.0,8.767e-05,2]
[396608393,1765068654112,-500.0,8.767e-05,2]
[396608395,1765068654121,-976.39,8.767e-05,2]
[396608397,1765068654131,-500.0,8.767e-05,2]
[396608399,1765068654140,-500.0,8.767e-05,2]
[396608401,1765068654150,-637.31,8.767e-05,2]
[396608403,1765068654159,-500.0,8.767e-05,2]
[396608404,1765068654169,-500.0,8.767e-05,2]
[396608406,1765068654178,-807.05,8.767e-05,2]
[396608408,1765068654187,-469.1823022,8.767e-05,2]
[396608848,1765068755967,617.07895887,0.0001311,3]
[396608849,1765069296278,447.46986233,0.00013107,3]
[396608850,1765069437612,437.17930294,0.00013109,3]
[396608859,1765069742179,250.0,0.00013109,3]
[396608860,1765069742238,250.0,0.00012589,3]
[396608888,1765069832169,-300.0,7.411e-05,2]
[396608889,1765069832178,-213.0,7.411e-05,2]
[396608891,1765069832188,-198.48728879,7.411e-05,2]
[396608931,1765069838436,-216.1256724,7.411e-05,2]
[396608932,1765069838446,-300.0,7.411e-05,2]
[396608933,1765069838456,-389.66189819,7.412e-05,2]
[396608934,1765069838499,-110.33810181,7.412e-05,2]
[396608935,1765069838508,-476.55907742,7.412e-05,2]
[396608936,1765069838519,-23.44092258,7.412e-05,2]
[396608937,1765069838528,-500.0,7.412e-05,2]
[396608938,1765069838538,-500.0,7.412e-05,2]
[396608939,1765069838547,-500.0,7.412e-05,2]
[396608940,1765069838557,-500.0,7.412e-05,2]
[396608941,1765069838566,-262.986068,7.412e-05,2]
[396608942,1765069838577,-237.013932,7.412e-05,2]
[396608943,1765069838587,-500.0,7.412e-05,2]
[396608944,1765069838597,-500.0,7.412e-05,2]
[396608945,1765069838607,-500.0,7.412e-05,2]
[396608946,1765069838617,-500.0,7.412e-05,2]
[396608947,1765069838626,-500.0,7.412e-05,2]
[396608948,1765069838636,-273.92761988,7.412e-05,2]
[396608949,1765069838646,-500.0,7.412e-05,2]
[396608950,1765069838655,-500.0,7.412e-05,2]
[396608951,1765069838665,-500.0,7.412e-05,2]
[396608952,1765069838675,-500.0,7.412e-05,2]
[396608953,1765069838685,-500.0,7.412e-05,2]
[396608954,1765069838695,-500.0,7.412e-05,2]
[396608955,1765069838705,-500.0,7.412e-05,2]
[396608956,1765069838716,-341.50008473,7.412e-05,2]
[396608957,1765069838729,-158.49991527,7.412e-05,2]
[396608958,1765069838739,-149.33658453,7.412e-05,2]
[396608959,1765069838757,-350.66341547,7.412e-05,2]
[396608960,1765069838767,-500.0,7.412e-05,2]
[396608961,1765069838776,-500.0,7.412e-05,2]
[396608962,1765069838786,-500.0,7.412e-05,2]
[396608963,1765069838796,-542.02783368,7.412e-05,2]
[396608964,1765069838805,-500.0,7.412e-05,2]
[396608965,1765069838816,-500.0,7.412e-05,2]
[396608966,1765069838825,-500.0,7.412e-05,2]
[396608967,1765069838834,-500.0,7.412e-05,2]
[396608968,1765069838843,-500.0,7.412e-05,2]
[396608969,1765069838852,-565.78087041,7.412e-05,2]
[396608970,1765069838862,-488.081,7.467e-05,2]
[396608971,1765069838872,-890000.0,7.519e-05,2]
[396608972,1765069838881,-300.0,7.562e-05,2]
[396608973,1765069838891,-300.0,7.562e-05,2]
[396608974,1765069838900,-300.0,7.562e-05,2]
[396608975,1765069838910,-300.0,7.562e-05,2]
[396608976,1765069838919,-300.0,7.562e-05,2]
[396608977,1765069838929,-300.0,7.562e-05,2]
[396608978,1765069838939,-300.0,7.562e-05,2]
[396608979,1765069838948,-300.0,7.562e-05,2]
[396608980,1765069838958,-300.0,7.562e-05,2]
[396608981,1765069838968,-300.0,7.562e-05,2]
[396608982,1765069838978,-300.0,7.562e-05,2]
[396608983,1765069838988,-300.0,7.562e-05,2]
[396608984,1765069838999,-300.0,7.562e-05,2]
[396608985,1765069839010,-300.0,7.562e-05,2]
[396608986,1765069839021,-300.0,7.562e-05,2]
[396608987,1765069839032,-600.0,7.562e-05,2]
[396608988,1765069839042,-1698.18539259,7.562e-05,2]
[396608989,1765069839051,-150.0,7.726e-05,2]
[396608990,1765069839061,-1014.15809009,7.782e-05,2]
[396608991,1765069839070,-3135.70311073,7.783e-05,2]
[396608992,1765069839080,-2155.0,8.016e-05,2]
[396608993,1765069839089,-1359.0,8.016e-05,2]
[396608994,1765069839100,-631.0,8.016e-05,2]
[396608995,1765069839109,-415.0,8.016e-05,2]
[396608996,1765069839119,-415.0,8.016e-05,2]
[396608997,1765069839128,-173.21,8.094e-05,2]
[396608998,1765069839137,-500.0,8.106e-05,2]
[396608999,1765069839146,-500.0,8.106e-05,2]
[396609000,1765069839155,-500.0,8.106e-05,2]
[396609001,1765069839165,-500.0,8.106e-05,2]
[396609002,1765069839430,-500.0,8.106e-05,2]
[396609003,1765069839440,-516.72522981,8.106e-05,2]
[396609004,1765069839450,-2230.315306,8.106e-05,2]
[396609005,1765069839459,-293.03711322,8.106e-05,2]
[396609006,1765069839468,-420.0,8.152e-05,2]
[396609007,1765069839477,-1014.15809009,8.156e-05,2]
[396609008,1765069839487,-500.0,8.219e-05,2]
[396609009,1765069839496,-500.0,8.219e-05,2]
[396609010,1765069839506,-500.0,8.219e-05,2]
[396609011,1765069839516,-500.0,8.219e-05,2]
[396609012,1765069839527,-500.0,8.219e-05,2]
[396609013,1765069839536,-506.92,8.219e-05,2]
[396609014,1765069839545,-500.0,8.219e-05,2]
[396609015,1765069839554,-500.0,8.219e-05,2]
[396609016,1765069839564,-500.0,8.219e-05,2]
[396609017,1765069839573,-500.0,8.219e-05,2]
[396609018,1765069839582,-500.0,8.219e-05,2]
[396609019,1765069839591,-500.0,8.219e-05,2]
[396609020,1765069839600,-179.51332732,8.219e-05,2]
[396609021,1765069839609,-786.06,8.219e-05,2]
[396609022,1765069839619,-932.49,8.219e-05,2]
[396609023,1765069839628,-500.0,8.219e-05,2]
[396609024,1765069839638,-624.35456866,8.219e-05,2]
[396609025,1765069839648,-500.0,8.219e-05,2]
[396609026,1765069839657,-500.0,8.219e-05,2]
[396609027,1765069839667,-459.36474921,8.219e-05,2]
[396609028,1765069839676,-500.0,8.219e-05,2]
[396609029,1765069839685,-500.0,8.219e-05,2]
[396609030,1765069839695,-500.0,8.219e-05,2]
[396609031,1765069839704,-500.0,8.219e-05,2]
[396609032,1765069839714,-500.0,8.219e-05,2]
[396609033,1765069839724,-500.0,8.219e-05,2]
[396609034,1765069839733,-500.0,8.219e-05,2]
[396609035,1765069839743,-500.0,8.219e-05,2]
[396609036,1765069839752,-500.0,8.219e-05,2]
[396609037,1765069839762,-500.0,8.219e-05,2]
[396609038,1765069839771,-500.0,8.219e-05,2]
[396609039,1765069839780,-500.0,8.219e-05,2]
[396609040,1765069839789,-500.0,8.219e-05,2]
[396609041,1765069839798,-914.32,8.219e-05,2]
[396609042,1765069839808,-500.0,8.219e-05,2]
[396609043,1765069839816,-500.0,8.219e-05,2]
[396609044,1765069839825,-500.0,8.219e-05,2]
[396609045,1765069839834,-500.0,8.219e-05,2]
[396609046,1765069839843,-846.45,8.219e-05,2]
[396609047,1765069839852,-500.0,8.219e-05,2]
[396609048,1765069839861,-500.0,8.219e-05,2]
[396609049,1765069839870,-1000.0,8.219e-05,2]
[396609050,1765069839879,-500.0,8.219e-05,2]
[396609051,1765069839888,-171.03394661,8.219e-05,2]
[396609052,1765069839897,-500.0,8.219e-05,2]
[396609053,1765069839907,-500.0,8.219e-05,2]
[396609054,1765069839916,-500.0,8.219e-05,2]
[396609055,1765069839925,-500.0,8.219e-05,2]
[396609056,1765069839935,-532.1,8.219e-05,2]
[396609058,1765069839944,-500.0,8.219e-05,2]
[396609060,1765069839954,-500.0,8.219e-05,2]
[396609062,1765069839963,-500.0,8.219e-05,2]
[396609065,1765069839972,-500.0,8.219e-05,2]
[396609068,1765069839981,-500.0,8.219e-05,2]
[396609070,1765069839990,-500.0,8.219e-05,2]
[396609071,1765069839999,-500.0,8.219e-05,2]
[396609072,1765069840008,-758.37,8.219e-05,2]
[396609073,1765069840017,-500.0,8.219e-05,2]
[396609074,1765069840026,-500.0,8.219e-05,2]
[396609075,1765069840035,-500.0,8.219e-05,2]
[396609076,1765069840045,-500.0,8.219e-05,2]
[396609078,1765069840054,-500.0,8.219e-05,2]
[396609080,1765069840064,-1132.75,8.219e-05,2]
[396609083,1765069840074,-500.0,8.219e-05,2]
[396609085,1765069840084,-402.99529668,8.219e-05,2]
[396609087,1765069840092,-500.0,8.219e-05,2]
[396609089,1765069840101,-500.0,8.219e-05,2]
[396609091,1765069840110,-500.0,8.219e-05,2]
[396609093,1765069840119,-500.0,8.219e-05,2]
[396609094,1765069840129,-500.0,8.219e-05,2]
[396609096,1765069840138,-907.88,8.219e-05,2]
[396609098,1765069840147,-597.2,8.219e-05,2]
[396609099,1765069840158,-923.95,8.219e-05,2]
[396609101,1765069840166,-500.0,8.219e-05,2]
[396609104,1765069840176,-500.0,8.219e-05,2]
[396609107,1765069840185,-500.0,8.219e-05,2]
[396609110,1765069840194,-500.0,8.219e-05,2]
[396609113,1765069840204,-500.0,8.219e-05,2]
[396609116,1765069840213,-500.0,8.219e-05,2]
[396609119,1765069840223,-1384.33,8.219e-05,2]
[396609122,1765069840232,-500.0,8.219e-05,2]
[396609125,1765069840241,-500.0,8.219e-05,2]
[396609128,1765069840251,-500.0,8.219e-05,2]
[396609130,1765069840260,-500.0,8.219e-05,2]
[396609132,1765069840269,-500.0,8.219e-05,2]
[396609134,1765069840278,-500.0,8.219e-05,2]
[396609136,1765069840289,-1355.29,8.219e-05,2]
[396609138,1765069840301,-215.54374433,8.219e-05,2]
[396609140,1765069840311,-502.48,8.219e-05,2]
[396609142,1765069840319,-189.00447617,8.219e-05,2]
[396609145,1765069840329,-500.0,8.219e-05,2]
[396609146,1765069840338,-500.0,8.219e-05,2]
[396609148,1765069840348,-500.0,8.219e-05,2]
[396609150,1765069840357,-500.0,8.219e-05,2]
[396609153,1765069840366,-500.0,8.219e-05,2]
[396609155,1765069840375,-500.0,8.219e-05,2]
[396609156,1765069840384,-500.0,8.219e-05,2]
[396609158,1765069840393,-500.0,8.219e-05,2]
[396609160,1765069840402,-500.0,8.219e-05,2]
[396609162,1765069840411,-793.99,8.219e-05,2]
[396609164,1765069840420,-500.0,8.219e-05,2]
[396609166,1765069840429,-500.0,8.219e-05,2]
[396609168,1765069840439,-500.0,8.219e-05,2]
[396609170,1765069840447,-1020.42,8.219e-05,2]
[396609173,1765069840457,-500.0,8.219e-05,2]
[396609175,1765069840466,-500.0,8.219e-05,2]
[396609176,1765069840479,-635.49726952,8.219e-05,2]
[396609178,1765069840490,-523.56,8.219e-05,2]
[396609180,1765069840500,-729.84,8.219e-05,2]
[396609182,1765069840510,-937.92,8.219e-05,2]
[396609185,1765069840522,-634.37,8.219e-05,2]
[396609187,1765069840537,-500.0,8.219e-05,2]
[396609188,1765069840546,-500.0,8.219e-05,2]
[396609190,1765069840555,-500.0,8.219e-05,2]
[396609192,1765069840564,-500.0,8.219e-05,2]
[396609194,1765069840573,-500.0,8.219e-05,2]
[396609196,1765069840583,-500.0,8.219e-05,2]
[396609198,1765069840592,-984.9,8.219e-05,2]
[396609200,1765069840601,-1141.34,8.219e-05,2]
[396609202,1765069840610,-500.0,8.219e-05,2]
[396609204,1765069840619,-500.0,8.219e-05,2]
[396609206,1765069840628,-531.03791829,8.219e-05,2]
[396609208,1765069840638,-500.0,8.219e-05,2]
[396609211,1765069840647,-500.0,8.219e-05,2]
[396609212,1765069840656,-803.61,8.219e-05,2]
[396609214,1765069840665,-500.0,8.219e-05,2]
[396609216,1765069840674,-500.0,8.219e-05,2]
[396609218,1765069840683,-500.0,8.219e-05,2]
[396609220,1765069840692,-500.0,8.219e-05,2]
[396609222,1765069840701,-600.35,8.219e-05,2]
[396609225,1765069840711,-500.0,8.219e-05,2]
[396609227,1765069840721,-500.0,8.219e-05,2]
[396609229,1765069840730,-500.0,8.219e-05,2]
[396609231,1765069840740,-635.06,8.219e-05,2]
[396609233,1765069840749,-500.0,8.219e-05,2]
[396609235,1765069840759,-758.92,8.219e-05,2]
[396609237,1765069840768,-500.0,8.219e-05,2]
[396609239,1765069840778,-500.0,8.219e-05,2]
[396609241,1765069840787,-500.0,8.219e-05,2]
[396609245,1765069840796,-500.0,8.219e-05,2]
[396609246,1765069840807,-500.0,8.219e-05,2]
[396609249,1765069840818,-500.0,8.219e-05,2]
[396609251,1765069840826,-500.0,8.219e-05,2]
[396609253,1765069840836,-500.0,8.219e-05,2]
[396609254,1765069840846,-500.0,8.219e-05,2]
[396609256,1765069840855,-2010.68,8.219e-05,2]
[396609258,1765069840864,-500.0,8.219e-05,2]
[396609260,1765069840873,-721.11,8.219e-05,2]
[396609263,1765069840882,-889.1,8.219e-05,2]
[396609264,1765069840892,-500.0,8.219e-05,2]
[396609266,1765069840902,-500.0,8.219e-05,2]
[396609268,1765069840911,-500.0,8.219e-05,2]
[396609270,1765069840920,-500.0,8.219e-05,2]
[396609272,1765069840929,-500.0,8.219e-05,2]
[396609274,1765069840938,-500.0,8.219e-05,2]
[396609276,1765069840947,-500.0,8.219e-05,2]
[396609278,1765069840956,-761.51,8.219e-05,2]
[396609280,1765069840965,-500.0,8.219e-05,2]
[396609282,1765069840974,-500.0,8.219e-05,2]
[396609284,1765069840983,-500.0,8.219e-05,2]
[396609286,1765069840991,-500.0,8.219e-05,2]
[396609288,1765069841000,-886.46,8.219e-05,2]
[396609290,1765069841010,-500.0,8.219e-05,2]
[396609293,1765069841019,-856.01,8.219e-05,2]
[396609295,1765069841029,-500.0,8.219e-05,2]
[396609297,1765069841038,-500.0,8.219e-05,2]
[396609299,1765069841047,-500.0,8.219e-05,2]
[396609301,1765069841057,-1102.36,8.219e-05,2]
[396609302,1765069841066,-672.37,8.219e-05,2]
[396609304,1765069841076,-500.0,8.219e-05,2]
[396609307,1765069841085,-500.0,8.219e-05,2]
[396609309,1765069841095,-500.0,8.219e-05,2]
[396609311,1765069841104,-611.58,8.219e-05,2]
[396609313,1765069841113,-500.0,8.219e-05,2]
[396609315,1765069841122,-945.65,8.219e-05,2]
[396609317,1765069841131,-500.0,8.219e-05,2]
[396609319,1765069841140,-800.81,8.219e-05,2]
[396609321,1765069841149,-500.0,8.219e-05,2]
[396609323,1765069841158,-500.0,8.219e-05,2]
[396609325,1765069841167,-500.0,8.219e-05,2]
[396609327,1765069841177,-500.0,8.219e-05,2]
[396609329,1765069841186,-500.0,8.219e-05,2]
[396609331,1765069841195,-500.0,8.219e-05,2]
[396609333,1765069841205,-500.0,8.219e-05,2]
[396609335,1765069841214,-500.0,8.219e-05,2]
[396609337,1765069841223,-343.63150809,8.219e-05,2]
[396609339,1765069841232,-500.0,8.219e-05,2]
[396609341,1765069841241,-500.0,8.219e-05,2]
[396609342,1765069841251,-500.0,8.219e-05,2]
[396609345,1765069841262,-500.0,8.219e-05,2]
[396609346,1765069841272,-500.0,8.219e-05,2]
[396609348,1765069841281,-500.73195425,8.219e-05,2]
[396609350,1765069841291,-1063.8,8.219e-05,2]
[396609352,1765069841303,-500.0,8.219e-05,2]
[396609354,1765069841312,-500.0,8.219e-05,2]
[396609357,1765069841322,-500.0,8.219e-05,2]
[396609359,1765069841331,-2120.12,8.219e-05,2]
[396609360,1765069841342,-500.0,8.219e-05,2]
[396609362,1765069841351,-500.0,8.219e-05,2]
[396609364,1765069841360,-500.0,8.219e-05,2]
[396609366,1765069841369,-500.0,8.219e-05,2]
[396609368,1765069841380,-500.0,8.219e-05,2]
[396609370,1765069841389,-570.68,8.219e-05,2]
[396609372,1765069841398,-617.51604306,8.219e-05,2]
[396609374,1765069841407,-681.55,8.219e-05,2]
[396609376,1765069841416,-500.0,8.219e-05,2]
[396609378,1765069841425,-623.84481343,8.219e-05,2]
[396609380,1765069841433,-1606.09,8.219e-05,2]
[396609382,1765069841442,-500.0,8.219e-05,2]
[396609384,1765069841452,-500.0,8.219e-05,2]
[396609386,1765069841461,-500.0,8.219e-05,2]
[396609388,1765069841469,-500.0,8.219e-05,2]
[396609390,1765069841478,-542.51,8.219e-05,2]
[396609392,1765069841487,-500.0,8.219e-05,2]
[396609394,1765069841496,-500.0,8.219e-05,2]
[396609396,1765069841505,-787.32,8.219e-05,2]
[396609398,1765069841514,-500.0,8.219e-05,2]
[396609401,1765069841524,-864.63,8.219e-05,2]
[396609403,1765069841532,-500.0,8.219e-05,2]
[396609405,1765069841541,-455.38606372,8.219e-05,2]
[396609407,1765069841550,-500.0,8.219e-05,2]
[396609409,1765069841559,-500.0,8.219e-05,2]
[396609411,1765069841568,-500.0,8.219e-05,2]
[396609413,1765069841576,-500.0,8.219e-05,2]
[396609415,1765069841585,-4298.11,8.219e-05,2]
[396609417,1765069841595,-500.0,8.219e-05,2]
[396609419,1765069841605,-500.0,8.219e-05,2]
[396609421,1765069841613,-500.0,8.219e-05,2]
[396609423,1765069841622,-500.0,8.219e-05,2]
[396609425,1765069841631,-500.0,8.219e-05,2]
[396609427,1765069841640,-500.0,8.219e-05,2]
[396609429,1765069841649,-500.0,8.219e-05,2]
[396609431,1765069841659,-1091.75,8.219e-05,2]
[396609433,1765069841668,-500.0,8.219e-05,2]
[396609435,1765069841678,-500.0,8.219e-05,2]
[396609437,1765069841692,-500.0,8.219e-05,2]
[396609439,1765069841701,-618.15,8.219e-05,2]
[396609441,1765069841711,-500.0,8.219e-05,2]
[396609443,1765069841721,-500.0,8.219e-05,2]
[396609445,1765069841730,-500.0,8.219e-05,2]
[396609448,1765069841740,-500.0,8.219e-05,2]
[396609449,1765069841749,-500.0,8.219e-05,2]
[396609452,1765069841759,-500.0,8.219e-05,2]
[396609454,1765069841768,-500.0,8.219e-05,2]
[396609456,1765069841777,-1069.74,8.219e-05,2]
[396609458,1765069841786,-500.0,8.219e-05,2]
[396609460,1765069841796,-500.0,8.219e-05,2]
[396609462,1765069841806,-718.13,8.219e-05,2]
[396609464,1765069841815,-711.33,8.219e-05,2]
[396609466,1765069841825,-1048.74,8.219e-05,2]
[396609468,1765069841834,-2247.86,8.219e-05,2]
[396609470,1765069841844,-500.0,8.219e-05,2]
[396609472,1765069841853,-500.0,8.219e-05,2]
[396609474,1765069841863,-500.0,8.219e-05,2]
[396609476,1765069841872,-500.0,8.219e-05,2]
[396609478,1765069841882,-500.0,8.219e-05,2]
[396609480,1765069841891,-755.82,8.219e-05,2]
[396609482,1765069841900,-1263.65,8.219e-05,2]
[396609484,1765069841909,-489.21457632,8.219e-05,2]
[396609486,1765069841918,-1065.91,8.219e-05,2]
[396609488,1765069841927,-500.0,8.219e-05,2]
[396609490,1765069841937,-500.0,8.219e-05,2]
[396609492,1765069841946,-500.0,8.219e-05,2]
[396609494,1765069841955,-500.0,8.219e-05,2]
[396609496,1765069841964,-500.0,8.219e-05,2]
[396609498,1765069841973,-518.93,8.219e-05,2]
[396609500,1765069841982,-500.0,8.219e-05,2]
[396609502,1765069841992,-602.11,8.219e-05,2]
[396609504,1765069842001,-500.0,8.219e-05,2]
[396609506,1765069842011,-1168.62,8.219e-05,2]
[396609508,1765069842021,-500.0,8.219e-05,2]
[396609510,1765069842030,-500.0,8.219e-05,2]
[396609512,1765069842039,-1473.71,8.219e-05,2]
[396609514,1765069842048,-500.0,8.219e-05,2]
[396609516,1765069842057,-1074.26,8.219e-05,2]
[396609518,1765069842066,-500.0,8.219e-05,2]
[396609520,1765069842076,-500.0,8.219e-05,2]
[396609523,1765069842085,-789.26,8.219e-05,2]
[396609525,1765069842095,-634.13,8.219e-05,2]
[396609527,1765069842104,-500.0,8.219e-05,2]
[396609529,1765069842116,-500.0,8.219e-05,2]
[396609531,1765069842125,-494.94435337,8.219e-05,2]
[396609533,1765069842134,-518.48,8.219e-05,2]
[396609535,1765069842143,-1433.14,8.219e-05,2]
[396609537,1765069842152,-211.99,8.219e-05,2]
[396609539,1765069842163,-1261.88,8.219e-05,2]
[396609541,1765069842172,-500.0,8.219e-05,2]
[396609543,1765069842181,-500.0,8.219e-05,2]
[396609545,1765069842190,-500.0,8.219e-05,2]
[396609547,1765069842199,-1587.79,8.219e-05,2]
[396609549,1765069842209,-2335.41,8.219e-05,2]
[396609551,1765069842218,-500.0,8.219e-05,2]
[396609553,1765069842228,-500.0,8.219e-05,2]
[396609555,1765069842237,-500.0,8.219e-05,2]
[396609557,1765069842246,-500.0,8.219e-05,2]
[396609559,1765069842255,-500.0,8.219e-05,2]
[396609561,1765069842264,-500.0,8.219e-05,2]
[396609563,1765069842274,-878.45,8.219e-05,2]
[396609564,1765069842283,-500.0,8.219e-05,2]
[396609565,1765069842295,-500.0,8.219e-05,2]
[396609566,1765069842305,-500.0,8.219e-05,2]
[396609567,1765069842314,-515.2,8.219e-05,2]
[396609568,1765069842323,-630.86,8.219e-05,2]
[396609569,1765069842333,-500.0,8.219e-05,2]
[396609570,1765069842342,-780.22,8.219e-05,2]
[396609571,1765069842351,-500.0,8.219e-05,2]
[396609572,1765069842361,-500.0,8.219e-05,2]
[396609573,1765069842370,-500.0,8.219e-05,2]
[396609574,1765069842379,-542.24,8.219e-05,2]
[396609575,1765069842388,-502.66,8.219e-05,2]
[396609576,1765069842398,-500.0,8.219e-05,2]
[396609577,1765069842407,-500.0,8.219e-05,2]
[396609578,1765069842416,-500.0,8.219e-05,2]
[396609579,1765069842426,-500.0,8.219e-05,2]
[396609580,1765069842435,-1026.77,8.219e-05,2]
[396609581,1765069842444,-500.0,8.219e-05,2]
[396609582,1765069842453,-600.02,8.219e-05,2]
[396609583,1765069842463,-500.0,8.219e-05,2]
[396609584,1765069842472,-1454.81,8.219e-05,2]
[396609585,1765069842481,-748.48,8.219e-05,2]
[396609586,1765069842490,-500.0,8.219e-05,2]
[396609587,1765069842500,-500.0,8.219e-05,2]
[396609589,1765069842509,-500.0,8.219e-05,2]
[396609591,1765069842519,-1294.09,8.219e-05,2]
[396609593,1765069842528,-500.0,8.219e-05,2]
[396609595,1765069842537,-500.0,8.219e-05,2]
[396609597,1765069842546,-1604.74,8.219e-05,2]
[396609599,1765069842556,-500.0,8.219e-05,2]
[396609601,1765069842567,-500.0,8.219e-05,2]
[396609603,1765069842576,-500.0,8.219e-05,2]
[396609605,1765069842585,-500.0,8.219e-05,2]
[396609607,1765069842594,-600.9,8.219e-05,2]
[396609610,1765069842604,-1325.1,8.219e-05,2]
[396609612,1765069842613,-11366.65,8.219e-05,2]
[396609614,1765069842622,-500.0,8.219e-05,2]
[396609616,1765069842631,-500.0,8.219e-05,2]
[396609618,1765069842640,-500.0,8.219e-05,2]
[396609620,1765069842649,-500.0,8.219e-05,2]
[396609622,1765069842658,-500.0,8.219e-05,2]
[396609624,1765069842668,-1053.68,8.219e-05,2]
[396609626,1765069842677,-1979.9,8.219e-05,2]
[396609628,1765069842686,-500.0,8.219e-05,2]
[396609630,1765069842698,-500.0,8.219e-05,2]
[396609632,1765069842707,-500.0,8.219e-05,2]
[396609634,1765069842717,-723.74,8.219e-05,2]
[396609636,1765069842726,-500.0,8.219e-05,2]
[396609638,1765069842736,-2847.99,8.219e-05,2]
[396609640,1765069842745,-500.0,8.219e-05,2]
[396609642,1765069842755,-500.0,8.219e-05,2]
[396609644,1765069842765,-507.26,8.219e-05,2]
[396609646,1765069842774,-500.0,8.219e-05,2]
[396609648,1765069842783,-3953.75,8.219e-05,2]
[396609650,1765069842793,-500.0,8.219e-05,2]
[396609652,1765069842802,-500.0,8.219e-05,2]
[396609654,1765069842811,-633.34,8.219e-05,2]
[396609656,1765069842821,-1471.16,8.219e-05,2]
[396609658,1765069842830,-500.0,8.219e-05,2]
[396609660,1765069842839,-500.0,8.219e-05,2]
[396609662,1765069842849,-500.0,8.219e-05,2]
[396609664,1765069842858,-500.0,8.219e-05,2]
[396609666,1765069842868,-500.0,8.219e-05,2]